fUST/lending_fUST_20260117
["ID","MTS","AMOUNT","RATE_DAILY","PERIOD"]
[402220884,1768611040178,-212.1,0.00019095,2]
[402220885,1768611040187,-393.43997606,0.00019171,2]
[402220886,1768611040196,-165.069169,0.00019178,2]
[402220887,1768611040205,-931.46,0.00019178,2]
[402220888,1768611040214,-931.46,0.00019178,2]
[402220889,1768611040223,-931.46,0.00019178,2]
[402220890,1768611040232,-931.46,0.00019178,2]
[402220891,1768611040241,-931.46,0.00019178,2]
[402220893,1768611040250,-931.46,0.00019178,2]
[402220895,1768611040259,-931.46,0.00019178,2]
[402220896,1768611040268,-931.46,0.00019178,2]
[402220897,1768611040278,-931.46,0.00019178,2]
[402220898,1768611040287,-931.46,0.00019178,2]
[402220899,1768611040297,-931.46,0.00019178,2]
[402220900,1768611040307,-171.75724915,0.00019178,2]
[402220901,1768611040319,-151.0,0.00019178,2]
[402220902,1768611040328,-151.0,0.00019178,2]
[402220903,1768611040336,-153.077623,0.00019178,2]
[402220904,1768611040346,-306.0,0.00019178,2]
[402220905,1768611040355,-306.0,0.00019178,2]
[402220906,1768611040364,-153.0,0.00019178,2]
[402220907,1768611040373,-153.0,0.00019178,2]
[402220908,1768611040382,-153.0,0.00019178,2]
[402220909,1768611040393,-153.0,0.00019178,2]
[402220910,1768611040402,-153.0,0.00019178,2]
[402220911,1768611040411,-153.0,0.00019178,2]
[402220912,1768611040420,-153.0,0.00019178,2]
[402220913,1768611040429,-153.0,0.00019178,2]
[402220914,1768611040438,-617.40005154,0.00019196,2]
[402220915,1768611040446,-1512.19024949,0.00019196,2]
[402220916,1768611040455,-167.86,0.000192,2]
[402220917,1768611040464,-150.35,0.000192,2]
[402220918,1768611040473,-166.92,0.000192,2]
[402220919,1768611040481,-2308.57,0.000192,2]
[402220920,1768611040490,-18577.45,0.000192,2]
[402220921,1768611040499,-629.0,0.00019214,2]
[402220922,1768611040508,-2147.0,0.00019214,2]
[402220923,1768611040517,-1367.0,0.00019214,2]
[402220924,1768611040525,-715.0,0.00019214,2]
[402220925,1768611040534,-417.0,0.00019214,2]
[402220926,1768611040543,-931.46,0.00019277,2]
[402220927,1768611040552,-425.3999684,0.00019278,2]
[402220928,1768611040561,-1366.0,0.00019542,5]
[402220929,1768611040570,-474.0,0.00019542,5]
[402220930,1768611040579,-419.0,0.00019542,5]
[402220931,1768611040588,-300.0,0.00019726,5]
[402220932,1768611040596,-200.4,0.00019726,5]
[402220933,1768611040605,-194.2841096,0.00019726,2]
[402220934,1768611040614,-194.2841096,0.00019726,2]
[402220935,1768611040623,-419.1125321,0.00019744,2]
[402220936,1768611040633,-194.2841096,0.00019753,2]
[402220937,1768611040642,-194.2841096,0.00019753,2]
[402220938,1768611040651,-194.2841096,0.00019808,2]
[402220939,1768611040660,-194.2841096,0.00019808,2]
[402220940,1768611040669,-194.2841096,0.00019808,2]
[402220941,1768611040678,-194.2841096,0.00019808,2]
[402220942,1768611040687,-194.2841096,0.00019808,2]
[402220944,1768611040696,-194.2841096,0.00019808,2]
[402220945,1768611040705,-194.2841096,0.00019808,2]
[402220946,1768611040714,-153.76785,0.00019874,2]
[402220947,1768611040723,-212.1,0.00019925,2]
[402220948,1768611040733,-200.14197,0.00019999,7]
[402220949,1768611040742,-300.0,0.0002,5]
[402220950,1768611040751,-411.5640717,0.0002,7]
[402220952,1768611040760,-165.037838,0.0002,7]
[402220954,1768611040769,-250.0,0.0002,10]
[402220956,1768611040778,-220.851346,0.0002,7]
[402220957,1768611040787,-2000.0,0.0002,7]
[402220958,1768611040796,-194.2841096,0.0002,2]
[402220960,1768611040806,-194.2841096,0.0002,2]
[402220962,1768611040815,-194.2841096,0.0002,2]
[402220964,1768611040824,-194.2841096,0.0002,2]
[402220966,1768611040833,-194.2841096,0.0002,2]
[402220968,1768611040842,-194.2841096,0.0002,2]
[402220970,1768611040852,-194.2841096,0.0002,2]
[402220972,1768611040861,-194.2841096,0.0002,2]
[402220974,1768611040870,-306.0,0.0002,2]
[402220976,1768611040879,-153.0,0.0002,2]
[402220978,1768611040888,-153.0,0.0002,2]
[402220980,1768611040896,-204.256802,0.0002,7]
[402220982,1768611040905,-153.0,0.0002,2]
[402220984,1768611040914,-250.0,0.000201,10]
[402220986,1768611040923,-237.0,0.00020137,3]
[402220988,1768611040932,-250.0,0.000202,10]
[402220990,1768611040941,-219.506319,0.000203,7]
[402220992,1768611040950,-250.0,0.000203,10]
[402220994,1768611040959,-250.0,0.000204,10]
[402220996,1768611040968,-931.46,0.00020483,2]
[402220998,1768611040978,-329.259478,0.000205,7]
[402221000,1768611040987,-166.92,0.000205,2]
[402221002,1768611040996,-2308.57,0.000205,2]
[402221004,1768611041005,-250.0,0.000205,10]
[402221006,1768611041014,-18577.45,0.000205,2]
[402221008,1768611041023,-2000.0,0.000205,7]
[402221010,1768611041032,-153.0,0.00020548,2]
[402221012,1768611041041,-153.0,0.00020548,2]
[402221014,1768611041051,-275.576588,0.00020548,2]
[402221016,1768611041059,-250.0,0.000206,10]
[402221018,1768611041068,-150.35,0.000207,2]
[402221020,1768611041077,-250.0,0.000207,10]
[402221022,1768611041086,-212.1,0.00020756,2]
[402221024,1768611041095,-250.0,0.000208,10]
[402221026,1768611041104,-194.2841096,0.00020822,2]
[402221028,1768611041113,-250.0,0.000209,10]
[402221030,1768611041124,-931.46,0.00020989,2]
[402221032,1768611041133,-931.46,0.00020989,2]
[402221034,1768611041146,-931.46,0.00020989,2]
[402221036,1768611041156,-931.46,0.00020989,2]
[402221038,1768611041165,-931.46,0.00020989,2]
[402221040,1768611041174,-3000.0,0.00021,2]
[402221042,1768611041183,-416.510026,0.00021,10]
[402221044,1768611041192,-3000.6562773,0.00021,2]
[402221046,1768611041201,-2000.0,0.00021,7]
[402221048,1768611041211,-3814.312118,0.0002101,2]
[402221050,1768611041219,-390.507,0.0002102,2]
[402221052,1768611041228,-931.46,0.00021094,2]
[402221054,1768611041237,-2800.0,0.00021095,7]
[402221056,1768611041248,-151.0,0.00021095,2]
[402221058,1768611041260,-439.42646677,0.00021171,2]
[402221060,1768611041269,-931.46,0.00021499,2]
[402221062,1768611041278,-931.46,0.00021499,2]
[402221064,1768611041287,-931.46,0.00021499,2]
[402221066,1768611041296,-931.46,0.00021499,2]
[402221068,1768611041305,-931.54262824,0.00021499,2]
[402221070,1768611041319,-12936.92451385,0.000215,2]
[402221072,1768611041328,-2000.0,0.000215,7]
[402221074,1768611041337,-212.1,0.00021586,2]
[402221076,1768611041346,-166.92,0.000217,2]
[402221078,1768611041357,-2308.57,0.000217,2]
[402221080,1768611041367,-10000.0,0.00021817,2]
[402221082,1768611041375,-10315.76523044,0.00021817,2]
[402221084,1768611041386,-315.1795,0.00021908,2]
[402221086,1768611041395,-315.1795,0.00021908,2]
[402221088,1768611041404,-500.0,0.00021917,3]
[402221090,1768611041413,-500.0,0.00021917,3]
[402221092,1768611041422,-500.0,0.00021917,3]
[402221094,1768611041432,-500.0,0.00021917,3]
[402221096,1768611041441,-500.0,0.00021917,3]
[402221098,1768611041451,-500.0,0.00021917,3]
[402221101,1768611041462,-500.0,0.00021917,3]
[402221103,1768611041471,-500.0,0.00021917,3]
[402221105,1768611041480,-500.0,0.00021917,3]
[402221107,1768611041489,-500.0,0.00021917,3]
[402221109,1768611041498,-500.0,0.00021917,3]
[402221111,1768611041507,-500.0,0.00021917,3]
[402221113,1768611041516,-500.0,0.00021917,3]
[402221115,1768611041525,-500.0,0.00021917,3]
[402221117,1768611041534,-500.0,0.00021917,3]
[402221119,1768611041545,-500.0,0.00021917,3]
[402221121,1768611041554,-500.0,0.00021917,3]
[402221122,1768611041564,-1361.89,0.00021917,3]
[402221124,1768611041573,-500.0,0.00021917,3]
[402221126,1768611041582,-500.0,0.00021917,3]
[402221128,1768611041591,-500.0,0.00021917,3]
[402221130,1768611041600,-500.0,0.00021917,3]
[402221132,1768611041609,-500.0,0.00021917,3]
[402221135,1768611041619,-500.0,0.00021917,3]
[402221137,1768611041628,-665.88,0.00021917,3]
[402221139,1768611041637,-500.0,0.00021917,3]
[402221141,1768611041647,-818.64,0.00021917,3]
[402221143,1768611041656,-500.0,0.00021917,3]
[402221145,1768611041666,-500.0,0.00021917,3]
[402221147,1768611041675,-1293.9,0.00021917,3]
[402221149,1768611041684,-500.0,0.00021917,3]
[402221151,1768611041693,-500.0,0.00021917,3]
[402221152,1768611041702,-500.0,0.00021917,3]
[402221155,1768611041712,-982.98,0.00021917,3]
[402221156,1768611041721,-500.93394919,0.00021917,3]
[402221158,1768611041730,-500.0,0.00021917,3]
[402221160,1768611041739,-500.0,0.00021917,3]
[402221162,1768611041748,-1086.05,0.00021917,3]
[402221164,1768611041757,-500.0,0.00021917,3]
[402221166,1768611041768,-1606.64,0.00021917,3]
[402221168,1768611041777,-500.0,0.00021917,3]
[402221170,1768611041786,-500.0,0.00021917,3]
[402221172,1768611041795,-500.0,0.00021917,3]
[402221174,1768611041805,-884.86,0.00021917,3]
[402221176,1768611041814,-500.0,0.00021917,3]
[402221178,1768611041823,-500.0,0.00021917,3]
[402221180,1768611041833,-500.0,0.00021917,3]
[402221182,1768611041842,-500.0,0.00021917,3]
[402221184,1768611041851,-981.22,0.00021917,3]
[402221186,1768611041860,-500.0,0.00021917,3]
[402221188,1768611041870,-500.0,0.00021917,3]
[402221190,1768611041879,-500.0,0.00021917,3]
[402221192,1768611041888,-500.0,0.00021917,3]
[402221194,1768611041897,-500.0,0.00021917,3]
[402221196,1768611041906,-500.0,0.00021917,3]
[402221198,1768611041914,-504.69,0.00021917,3]
[402221200,1768611041923,-809.86,0.00021917,3]
[402221202,1768611041932,-500.0,0.00021917,3]
[402221204,1768611041941,-500.0,0.00021917,3]
[402221206,1768611041949,-500.0,0.00021917,3]
[402221208,1768611041958,-500.0,0.00021917,3]
[402221210,1768611041968,-1649.11,0.00021917,3]
[402221211,1768611041977,-500.0,0.00021917,3]
[402221213,1768611041986,-500.0,0.00021917,3]
[402221215,1768611041995,-677.42,0.00021917,3]
[402221217,1768611042004,-500.0,0.00021917,3]
[402221219,1768611042012,-500.0,0.00021917,3]
[402221221,1768611042021,-591.18,0.00021917,3]
[402221223,1768611042030,-604.88,0.00021917,3]
[402221225,1768611042039,-500.0,0.00021917,3]
[402221227,1768611042048,-500.0,0.00021917,3]
[402221229,1768611042057,-500.0,0.00021917,3]
[402221231,1768611042067,-500.0,0.00021917,3]
[402221233,1768611042075,-500.0,0.00021917,3]
[402221235,1768611042084,-1168.23,0.00021917,3]
[402221237,1768611042092,-500.0,0.00021917,3]
[402221238,1768611042101,-1935.72,0.00021917,3]
[402221240,1768611042110,-278.73546218,0.00021917,3]
[402221242,1768611042119,-496.43834862,0.00021917,3]
[402221244,1768611042128,-674.36,0.00021917,3]
[402221246,1768611042137,-502.61886908,0.00021917,3]
[402221248,1768611042146,-520.48925197,0.00021917,3]
[402221250,1768611042155,-778.38,0.00021917,3]
[402221252,1768611042164,-500.0,0.00021917,3]
[402221254,1768611042174,-500.0,0.00021917,3]
[402221255,1768611042182,-500.0,0.00021917,3]
[402221256,1768611042191,-1392.94,0.00021917,3]
[402221257,1768611042200,-820.32,0.00021917,3]
[402221258,1768611042209,-500.0,0.00021917,3]
[402221259,1768611042218,-545.02471095,0.00021917,3]
[402221260,1768611042227,-500.0,0.00021917,3]
[402221261,1768611042237,-500.0,0.00021917,3]
[402221262,1768611042246,-500.58339379,0.00021917,3]
[402221263,1768611042256,-1178.92,0.00021917,3]
[402221264,1768611042265,-500.0,0.00021917,3]
[402221265,1768611042275,-500.0,0.00021917,3]
[402221266,1768611042285,-500.0,0.00021917,3]
[402221267,1768611042295,-511.2,0.00021917,3]
[402221268,1768611042305,-500.0,0.00021917,3]
[402221269,1768611042318,-705.47,0.00021917,3]
[402221270,1768611042327,-754.27,0.00021917,3]
[402221271,1768611042336,-500.0,0.00021917,3]
[402221272,1768611042346,-500.0,0.00021917,3]
[402221274,1768611042357,-753.23,0.00021917,3]
[402221275,1768611042367,-540.51,0.00021917,3]
[402221278,1768611042378,-503.85,0.00021917,3]
[402221280,1768611042387,-500.0,0.00021917,3]
[402221281,1768611042396,-500.0,0.00021917,3]
[402221284,1768611042406,-1739.43,0.00021917,3]
[402221286,1768611042416,-500.0,0.00021917,3]
[402221288,1768611042425,-1910.68,0.00021917,3]
[402221290,1768611042435,-500.0,0.00021917,3]
[402221292,1768611042445,-500.0,0.00021917,3]
[402221294,1768611042454,-500.0,0.00021917,3]
[402221296,1768611042464,-500.0,0.00021917,3]
[402221298,1768611042474,-500.0,0.00021917,3]
[402221300,1768611042483,-500.0,0.00021917,3]
[402221302,1768611042493,-500.0,0.00021917,3]
[402221304,1768611042502,-950.71,0.00021917,3]
[402221306,1768611042511,-500.0,0.00021917,3]
[402221308,1768611042521,-500.0,0.00021917,3]
[402221310,1768611042530,-819.54,0.00021917,3]
[402221312,1768611042540,-589.2,0.00021917,3]
[402221314,1768611042549,-500.0,0.00021917,3]
[402221316,1768611042559,-500.0,0.00021917,3]
[402221318,1768611042569,-500.0,0.00021917,3]
[402221321,1768611042579,-500.0,0.00021917,3]
[402221323,1768611042589,-500.0,0.00021917,3]
[402221325,1768611042599,-500.0,0.00021917,3]
[402221327,1768611042609,-500.0,0.00021917,3]
[402221329,1768611042619,-500.23500723,0.00021917,3]
[402221331,1768611042629,-500.0,0.00021917,3]
[402221333,1768611042638,-500.0,0.00021917,3]
[402221335,1768611042648,-500.0,0.00021917,3]
[402221337,1768611042659,-987.04,0.00021917,3]
[402221339,1768611042668,-1359.79,0.00021917,3]
[402221341,1768611042679,-894.68,0.00021917,3]
[402221343,1768611042689,-501.77,0.00021917,3]
[402221345,1768611042699,-500.0,0.00021917,3]
[402221347,1768611042709,-940.82,0.00021917,3]
[402221349,1768611042719,-500.0,0.00021917,3]
[402221351,1768611042729,-500.0,0.00021917,3]
[402221353,1768611042740,-500.0,0.00021917,3]
[402221356,1768611042750,-500.0,0.00021917,3]
[402221358,1768611042760,-500.0,0.00021917,3]
[402221360,1768611042769,-500.0,0.00021917,3]
[402221362,1768611042779,-542.05,0.00021917,3]
[402221364,1768611042789,-520.16,0.00021917,3]
[402221366,1768611042799,-500.0,0.00021917,3]
[402221368,1768611042809,-645.87,0.00021917,3]
[402221370,1768611042819,-500.0,0.00021917,3]
[402221372,1768611042828,-500.0,0.00021917,3]
[402221374,1768611042839,-725.06,0.00021917,3]
[402221376,1768611042848,-500.0,0.00021917,3]
[402221378,1768611042858,-577.79,0.00021917,3]
[402221380,1768611042868,-500.0,0.00021917,3]
[402221382,1768611042877,-500.0,0.00021917,3]
[402221384,1768611042887,-500.0,0.00021917,3]
[402221386,1768611042897,-500.0,0.00021917,3]
[402221388,1768611042906,-500.0,0.00021917,3]
[402221390,1768611042916,-500.0,0.00021917,3]
[402221392,1768611042926,-500.0,0.00021917,3]
[402221395,1768611042935,-500.0,0.00021917,3]
[402221398,1768611042972,-500.0,0.00021917,3]
[402221400,1768611042981,-500.0,0.00021917,3]
[402221403,1768611042992,-526.95928293,0.00021917,3]
[402221405,1768611043001,-500.0,0.00021917,3]
[402221407,1768611043011,-541.65842006,0.00021917,3]
[402221409,1768611043020,-500.0,0.00021917,3]
[402221411,1768611043031,-892.6,0.00021917,3]
[402221413,1768611043040,-500.0,0.00021917,3]
[402221415,1768611043050,-577.9,0.00021917,3]
[402221417,1768611043059,-500.0,0.00021917,3]
[402221419,1768611043069,-500.0,0.00021917,3]
[402221421,1768611043078,-628.52,0.00021917,3]
[402221423,1768611043090,-500.0,0.00021917,3]
[402221426,1768611043100,-500.0,0.00021917,3]
[402221429,1768611043110,-500.0,0.00021917,3]
[402221432,1768611043120,-1072.09,0.00021917,3]
[402221435,1768611043129,-500.0,0.00021917,3]
[402221438,1768611043140,-500.0,0.00021917,3]
[402221440,1768611043150,-500.0,0.00021917,3]
[402221443,1768611043160,-500.0,0.00021917,3]
[402221445,1768611043170,-500.0,0.00021917,3]
[402221448,1768611043180,-500.0,0.00021917,3]
[402221451,1768611043190,-684.23,0.00021917,3]
[402221454,1768611043200,-500.0,0.00021917,3]
[402221458,1768611043210,-500.0,0.00021917,3]
[402221460,1768611043219,-1606.72,0.00021917,3]
[402221462,1768611043229,-500.0,0.00021917,3]
[402221464,1768611043239,-233.05369589,0.00021917,3]
[402221466,1768611043250,-500.0,0.00021917,3]
[402221468,1768611043260,-500.0,0.00021917,3]
[402221470,1768611043270,-500.0,0.00021917,3]
[402221472,1768611043281,-601.72,0.00021917,3]
[402221475,1768611043292,-500.0,0.00021917,3]
[402221477,1768611043303,-500.0,0.00021917,3]
[402221479,1768611043317,-500.0,0.00021917,3]
[402221481,1768611043326,-1627.91,0.00021917,3]
[402221483,1768611043336,-656.85,0.00021917,3]
[402221485,1768611043346,-500.0,0.00021917,3]
[402221487,1768611043357,-500.0,0.00021917,3]
[402221489,1768611043367,-500.0,0.00021917,3]
[402221491,1768611043377,-500.0,0.00021917,3]
[402221493,1768611043387,-642.44381286,0.00021917,3]
[402221495,1768611043397,-1974.67,0.00021917,3]
[402221497,1768611043407,-500.0,0.00021917,3]
[402221499,1768611043416,-647.91,0.00021917,3]
[402221502,1768611043425,-1308.06,0.00021917,3]
[402221504,1768611043435,-1128.36,0.00021917,3]
[402221506,1768611043444,-500.0,0.00021917,3]
[402221508,1768611043454,-500.0,0.00021917,3]
[402221510,1768611043464,-847.79,0.00021917,3]
[402221512,1768611043474,-500.0,0.00021917,3]
[402221514,1768611043483,-500.0,0.00021917,2]
[402221516,1768611043493,-500.0,0.00021917,3]
[402221518,1768611043502,-500.0,0.00021917,3]
[402221520,1768611043512,-673.97,0.00021917,3]
[402221522,1768611043521,-500.0,0.00021917,3]
[402221524,1768611043531,-598.9,0.00021917,3]
[402221526,1768611043540,-500.0,0.00021917,3]
[402221528,1768611043550,-500.0,0.00021917,3]
[402221530,1768611043560,-425.3843245,0.00021917,3]
[402221532,1768611043571,-500.0,0.00021917,3]
[402221534,1768611043582,-500.0,0.00021917,3]
[402221537,1768611043592,-616.43,0.00021917,3]
[402221539,1768611043602,-500.0,0.00021917,3]
[402221541,1768611043611,-500.0,0.00021917,3]
[402221543,1768611043621,-931.54,0.00021917,3]
[402221545,1768611043631,-500.0,0.00021917,3]
[402221548,1768611043640,-500.0,0.00021917,3]
[402221550,1768611043650,-1280.94,0.00021917,3]
[402221552,1768611043660,-500.0,0.00021917,3]
[402221554,1768611043670,-500.0,0.00021917,3]
[402221556,1768611043680,-500.0,0.00021917,3]
[402221558,1768611043689,-1408.53,0.00021917,3]
[402221560,1768611043700,-500.0,0.00021917,3]
[402221563,1768611043709,-599.42,0.00021917,3]
[402221565,1768611043719,-500.0,0.00021917,3]
[402221567,1768611043728,-500.0,0.00021917,3]
[402221569,1768611043738,-976.65,0.00021917,3]
[402221571,1768611043747,-500.0,0.00021917,3]
[402221573,1768611043757,-500.0,0.00021917,3]
[402221575,1768611043766,-500.0,0.00021917,3]
[402221577,1768611043775,-521.22,0.00021917,3]
[402221579,1768611043785,-512.17480943,0.00021917,3]
[402221581,1768611043794,-500.0,0.00021917,3]
[402221583,1768611043803,-500.0,0.00021917,3]
[402221585,1768611043813,-500.0,0.00021917,3]
[402221587,1768611043823,-500.0,0.00021917,3]
[402221589,1768611043832,-500.0,0.00021917,3]
[402221591,1768611043842,-1429.76,0.00021917,3]
[402221593,1768611043851,-500.0,0.00021917,3]
[402221595,1768611043861,-500.0,0.00021917,3]
[402221597,1768611043871,-646.98,0.00021917,3]
[402221599,1768611043880,-500.0,0.00021917,3]
[402221601,1768611043890,-500.0,0.00021917,3]
[402221603,1768611043899,-500.0,0.00021917,3]
[402221605,1768611043909,-500.0,0.00021917,3]
[402221607,1768611043919,-500.0,0.00021917,3]
[402221609,1768611043928,-500.0,0.00021917,3]
[402221611,1768611043938,-1992.23,0.00021917,3]
[402221613,1768611043948,-500.0,0.00021917,3]
[402221615,1768611043957,-500.0,0.00021917,3]
[402221618,1768611043967,-1925.58,0.00021917,3]
[402221620,1768611043976,-500.0,0.00021917,3]
[402221622,1768611043986,-500.0,0.00021917,3]
[402221624,1768611043998,-500.0,0.00021917,3]
[402221626,1768611044007,-500.0,0.00021917,3]
[402221628,1768611044017,-500.0,0.00021917,3]
[402221630,1768611044027,-500.0,0.00021917,3]
[402221632,1768611044036,-1041.15,0.00021917,3]
[402221634,1768611044046,-539.04,0.00021917,3]
[402221636,1768611044055,-1000.0,0.00021917,2]
[402221638,1768611044065,-500.0,0.00021917,3]
[402221640,1768611044075,-500.0,0.00021917,3]
[402221642,1768611044085,-500.0,0.00021917,3]
[402221644,1768611044094,-500.0,0.00021917,3]
[402221646,1768611044106,-500.0,0.00021917,3]
[402221648,1768611044116,-1062.73,0.00021917,3]
[402221650,1768611044126,-500.0,0.00021917,3]
[402221653,1768611044136,-1944.28,0.00021917,3]
[402221655,1768611044146,-500.0,0.00021917,3]
[402221657,1768611044156,-500.0,0.00021917,3]
[402221659,1768611044165,-500.0,0.00021917,3]
[402221661,1768611044175,-500.0,0.00021917,3]
[402221663,1768611044184,-500.0,0.00021917,3]
[402221665,1768611044194,-500.0,0.00021917,3]
[402221667,1768611044204,-500.0,0.00021917,3]
[402221669,1768611044213,-500.0,0.00021917,3]
[402221671,1768611044224,-500.0,0.00021917,3]
[402221673,1768611044234,-500.0,0.00021917,3]
[402221675,1768611044243,-500.0,0.00021917,3]
[402221677,1768611044253,-500.0,0.00021917,3]
[402221679,1768611044262,-500.0,0.00021917,3]
[402221681,1768611044273,-673.97,0.00021917,3]
[402221683,1768611044283,-1025.24,0.00021917,3]
[402221685,1768611044293,-500.0,0.00021917,3]
[402221687,1768611044305,-918.56,0.00021917,3]
[402221689,1768611044321,-427.17141093,0.00021917,3]
[402221692,1768611044333,-500.0,0.00021917,3]
[402221694,1768611044343,-500.0,0.00021917,3]
[402221696,1768611044355,-500.0,0.00021917,3]
[402221698,1768611044365,-500.0,0.00021917,3]
[402221700,1768611044375,-263.34556446,0.00021917,3]
[402221702,1768611044387,-500.0,0.00021917,3]
[402221732,1768611044655,-500.0,0.00021917,3]
[402221735,1768611044673,-522.30170593,0.00021917,3]
[402221737,1768611044682,-500.0,0.00021917,3]
[402221739,1768611044692,-500.0,0.00021917,3]
[402221741,1768611044701,-500.0,0.00021917,3]
[402221743,1768611044710,-516.0337131,0.00021917,3]
[402221745,1768611044720,-500.0,0.00021917,3]
[402221747,1768611044729,-810.26,0.00021917,3]
[402221749,1768611044738,-500.0,0.00021917,3]
[402221751,1768611044748,-604.05,0.00021917,3]
[402221752,1768611044757,-500.0,0.00021917,3]
[402221753,1768611044766,-500.0,0.00021917,3]
[402221754,1768611044775,-500.0,0.00021917,3]
[402221755,1768611044784,-500.0,0.00021917,3]
[402221756,1768611044793,-500.0,0.00021917,3]
[402221757,1768611044803,-710.91,0.00021917,3]
[402221758,1768611044812,-1723.87,0.00021917,3]
[402221759,1768611044821,-789.1,0.00021917,3]
[402221760,1768611044830,-981.45,0.00021917,3]
[402221761,1768611044839,-693.86,0.00021917,3]
[402221762,1768611044849,-500.0,0.00021917,3]
[402221763,1768611044858,-714.41,0.00021917,3]
[402221764,1768611044867,-827.31,0.00021917,3]
[402221765,1768611044876,-500.0,0.00021917,3]
[402221766,1768611044885,-500.0,0.00021917,3]
[402221767,1768611044894,-806.77,0.00021917,3]
[402221768,1768611044903,-2077.1,0.00021917,3]
[402221769,1768611044913,-500.0,0.00021917,3]
[402221771,1768611044923,-500.0,0.00021917,3]
[402221773,1768611044933,-519.2,0.00021917,3]
[402221775,1768611044942,-536.25464014,0.00021917,3]
[402221777,1768611044952,-1076.09,0.00021917,3]
[402221779,1768611044962,-1004.12,0.00021917,3]
[402221781,1768611044971,-500.0,0.00021917,3]
[402221783,1768611044980,-500.0,0.00021917,3]
[402221785,1768611044990,-1646.65,0.00021917,3]
[402221787,1768611044999,-1776.76,0.00021917,3]
[402221790,1768611045009,-500.0,0.00021917,3]
[402221792,1768611045019,-500.0,0.00021917,3]
[402221794,1768611045029,-500.0,0.00021917,3]
[402221796,1768611045038,-1021.27,0.00021917,3]
[402221798,1768611045048,-518.7440352,0.00021917,3]
[402221800,1768611045057,-444.45111127,0.00021917,3]
[402221802,1768611045067,-500.0,0.00021917,3]
[402221804,1768611045076,-2325.91,0.00021917,3]
[402221806,1768611045085,-500.0,0.00021917,3]
[402221808,1768611045095,-801.61,0.00021917,3]
[402221810,1768611045105,-1018.0,0.00021917,3]
[402221812,1768611045114,-1439.06,0.00021917,3]
[402221814,1768611045123,-500.0,0.00021917,3]
[402221816,1768611045132,-500.0,0.00021917,3]
[402221818,1768611045141,-500.0,0.00021917,3]
[402221820,1768611045151,-500.0,0.00021917,3]
[402221822,1768611045160,-500.0,0.00021917,3]
[402221824,1768611045169,-500.0,0.00021917,3]
[402221826,1768611045179,-500.0,0.00021917,3]
[402221827,1768611045188,-500.0,0.00021917,3]
[402221830,1768611045199,-1013.64,0.00021917,3]
[402221832,1768611045207,-659.0,0.00021917,3]
[402221834,1768611045216,-500.0,0.00021917,3]
[402221836,1768611045226,-500.0,0.00021917,3]